Workbook

Sheet Title Page

Sheet Inputs
B3: Headings | C3: 2014/15 | D3: 2015/16 | E3: 2016/17 | F3: 2017/18 | G3: 2018/19 | H3: 2019/20
B5: WACC | C5: 0.0585
B6: Forecast Inflation | C6: 0.0238
B8: Last Updated | C8: 2014-10-19

Sheet Revenue Proportions
B2: Street Lighting Service | C2: Revenue Proportion | D2: Tariff | E2: Revenue Proportion
B3: Major | C3: ='Price Path Calc'!L49 -> 0.4525785462 | D3: Non-contributed | E3: ='Price Path Calc'!J102 -> 0.4327391776
D4: Contributed | E4: ='Price Path Calc'!J103 -> 0.5672608224
B5: Major | C5: ='Price Path Calc'!L50 -> 0.5474214538 | D5: Non-contributed | E5: ='Price Path Calc'!J104 -> 0.4701864591
D6: Contributed | E6: ='Price Path Calc'!J105 -> 0.5298135409
B8: $/day | C8: Category | D8: 2015-16 | E8: 2016-17 | F8: 2017-18 | G8: 2018-19 | H8: 2019-20
B9: Major Street Lights | C9: non-contributed | D9: ='Price Path Calc'!D62 -> 0.7787326751 | E9: ='Price Path Calc'!E62 -> 0.7966760882 | F9: ='Price Path Calc'!F62 -> 0.8150329501 | G9: ='Price Path Calc'!G62 -> 0.8338127873 | H9: ='Price Path Calc'!H62 -> 0.8530253461
C10: contributed | D10: ='Price Path Calc'!D69 -> 0.2708227515 | E10: ='Price Path Calc'!E69 -> 0.2770629989 | F10: ='Price Path Calc'!F69 -> 0.2834470328 | G10: ='Price Path Calc'!G69 -> 0.2899781665 | H10: ='Price Path Calc'!H69 -> 0.2966597894
B11: Minor Street Lights | C11: non-contributed | D11: ='Price Path Calc'!D65 -> 0.3568659837 | E11: ='Price Path Calc'!E65 -> 0.3650888231 | F11: ='Price Path Calc'!F65 -> 0.3735011317 | G11: ='Price Path Calc'!G65 -> 0.3821072752 | H11: ='Price Path Calc'!H65 -> 0.3909117197
C12: contributed | D12: ='Price Path Calc'!D71 -> 0.1307776641 | E12: ='Price Path Calc'!E71 -> 0.1337910186 | F12: ='Price Path Calc'!F71 -> 0.1368738063 | G12: ='Price Path Calc'!G71 -> 0.1400276271 | H12: ='Price Path Calc'!H71 -> 0.1432541175
B13: All prices are exclusive of GST
B15: Forecast Luminaries (avg pa) | C15: Category | D15: 2015-16 | E15: 2016-17 | F15: 2017-18 | G15: 2018-19 | H15: 2019-20
B16: Major Street Lights | C16: non-contributed | D16: ='Price Path Calc'!D12 -> 39907 | E16: ='Price Path Calc'!E12 -> 39903 | F16: ='Price Path Calc'!F12 -> 39899 | G16: ='Price Path Calc'!G12 -> 39895 | H16: ='Price Path Calc'!H12 -> 39891
C17: contributed | D17: ='Price Path Calc'!D14 -> 49203 | E17: ='Price Path Calc'!E14 -> 50781 | F17: ='Price Path Calc'!F14 -> 52385 | G17: ='Price Path Calc'!G14 -> 54017 | H17: ='Price Path Calc'!H14 -> 55677
B18: Minor Street Lights | C18: non-contributed | D18: ='Price Path Calc'!D13 -> 108439 | E18: ='Price Path Calc'!E13 -> 108430 | F18: ='Price Path Calc'!F13 -> 108421 | G18: ='Price Path Calc'!G13 -> 108411 | H18: ='Price Path Calc'!H13 -> 108401
C19: contributed | D19: ='Price Path Calc'!D15 -> 114767 | E19: ='Price Path Calc'!E15 -> 118536 | F19: ='Price Path Calc'!F15 -> 122369 | G19: ='Price Path Calc'!G15 -> 126266 | H19: ='Price Path Calc'!H15 -> 130231
B20: All prices are exclusive of GST

Sheet Comparison of smoothing
B2: Base without smoothing
B4: $ per luminaire per day | C4: =YEAR_0 -> 2014/15 | D4: =YEAR_1 -> 2015/16 | E4: =YEAR_2 -> 2016/17 | F4: =YEAR_3 -> 2017/18 | G4: =YEAR_4 -> 2018/19 | H4: =YEAR_5 -> 2019/20
B5: Rate 1 - Major (base) | C5: ='Price Path Calc'!C31 -> 1.2 | D5: ='Price Path Calc'!D31 -> 0.7787326751 | E5: ='Price Path Calc'!E31 -> 0.8027008409 | F5: ='Price Path Calc'!F31 -> 0.8375296414 | G5: ='Price Path Calc'!G31 -> 0.8730871255 | H5: ='Price Path Calc'!H31 -> 0.9039140792
B6: ROA & Depn | C6: ='Price Path Calc'!C32 -> 0.8737299862 | D6: ='Price Path Calc'!D32 -> 0.5079099235 | E6: ='Price Path Calc'!E32 -> 0.5362964556 | F6: ='Price Path Calc'!F32 -> 0.567665117 | G6: ='Price Path Calc'!G32 -> 0.5981773787 | H6: ='Price Path Calc'!H32 -> 0.6313321045
B7: Opex | C7: ='Price Path Calc'!C33 -> 0.3262700138 | D7: ='Price Path Calc'!D33 -> 0.2708227515 | E7: ='Price Path Calc'!E33 -> 0.2664043854 | F7: ='Price Path Calc'!F33 -> 0.2698645243 | G7: ='Price Path Calc'!G33 -> 0.2749097468 | H7: ='Price Path Calc'!H33 -> 0.2725819747
B8: Rate 1 - Minor (base) | C8: ='Price Path Calc'!C34 -> 0.48 | D8: ='Price Path Calc'!D34 -> 0.3568659837 | E8: ='Price Path Calc'!E34 -> 0.3674676171 | F8: ='Price Path Calc'!F34 -> 0.3832005207 | G8: ='Price Path Calc'!G34 -> 0.3993246212 | H8: ='Price Path Calc'!H34 -> 0.4130546126
B9: ROA & Depn | C9: ='Price Path Calc'!C35 -> 0.3469950739 | D9: ='Price Path Calc'!D35 -> 0.2260883196 | E9: ='Price Path Calc'!E35 -> 0.2387200341 | F9: ='Price Path Calc'!F35 -> 0.2526787157 | G9: ='Price Path Calc'!G35 -> 0.2662581775 | H9: ='Price Path Calc'!H35 -> 0.281013614
B10: Opex | C10: ='Price Path Calc'!C36 -> 0.1330049261 | D10: ='Price Path Calc'!D36 -> 0.1307776641 | E10: ='Price Path Calc'!E36 -> 0.128747583 | F10: ='Price Path Calc'!F36 -> 0.130521805 | G10: ='Price Path Calc'!G36 -> 0.1330664437 | H10: ='Price Path Calc'!H36 -> 0.1320409987
B11: Rate 2 - Major (base)
B12: Opex | C12: ='Price Path Calc'!C38 -> 0.33 | D12: ='Price Path Calc'!D38 -> 0.2708227515 | E12: ='Price Path Calc'!E38 -> 0.2664043854 | F12: ='Price Path Calc'!F38 -> 0.2698645243 | G12: ='Price Path Calc'!G38 -> 0.2749097468 | H12: ='Price Path Calc'!H38 -> 0.2725819747
B13: Rate 2 - Minor (base)
B14: Opex | C14: ='Price Path Calc'!C40 -> 0.13 | D14: ='Price Path Calc'!D40 -> 0.1307776641 | E14: ='Price Path Calc'!E40 -> 0.128747583 | F14: ='Price Path Calc'!F40 -> 0.130521805 | G14: ='Price Path Calc'!G40 -> 0.1330664437 | H14: ='Price Path Calc'!H40 -> 0.1320409987
B16: Total Revenue | C16: =YEAR_0 -> 2014/15 | D16: =YEAR_1 -> 2015/16 | E16: =YEAR_2 -> 2016/17 | F16: =YEAR_3 -> 2017/18 | G16: =YEAR_4 -> 2018/19 | H16: =YEAR_5 -> 2019/20 | J16: NPV
B17: Non-contributed - Major | D17: ='Price Path Calc'!D49 -> 11343062.98 | E17: ='Price Path Calc'!E49 -> 11691012.65 | F17: ='Price Path Calc'!F49 -> 12197057.23 | G17: ='Price Path Calc'!G49 -> 12713610.97 | H17: ='Price Path Calc'!H49 -> 13161183.33 | J17: =NPV(WACC,D17:H17) -> 51467379.77 | K17: =J17/$J$21 -> 0.3177474986 | L17: =K17+K19 -> 0.4525785462
B18: Non-contributed - Minor | D18: ='Price Path Calc'!D50 -> 14124839.5 | E18: ='Price Path Calc'!E50 -> 14543247.51 | F18: ='Price Path Calc'!F50 -> 15164649.03 | G18: ='Price Path Calc'!G50 -> 15801281.25 | H18: ='Price Path Calc'!H50 -> 16343069.57 | J18: =NPV(WACC,D18:H18) -> 63997552.08 | K18: =J18/$J$21 -> 0.3951058356 | L18: =K18+K20 -> 0.5474214538
B19: Contributed - Major | D19: ='Price Path Calc'!D51 -> 4863731.523 | E19: ='Price Path Calc'!E51 -> 4937822.599 | F19: ='Price Path Calc'!F51 -> 5159951.384 | G19: ='Price Path Calc'!G51 -> 5420176.923 | H19: ='Price Path Calc'!H51 -> 5539439.511 | J19: =NPV(WACC,D19:H19) -> 21839355.96 | K19: =J19/$J$21 -> 0.1348310475
B20: Contributed - Minor | D20: ='Price Path Calc'!D52 -> 5478270.464 | E20: ='Price Path Calc'!E52 -> 5570346.578 | F20: ='Price Path Calc'!F52 -> 5829715.308 | G20: ='Price Path Calc'!G52 -> 6132645.169 | H20: ='Price Path Calc'!H52 -> 6276478.424 | J20: =NPV(WACC,D20:H20) -> 24671431.89 | K20: =J20/$J$21 -> 0.1523156183
D21: =SUM(D17:D20) -> 35809904.46 | E21: =SUM(E17:E20) -> 36742429.34 | F21: 38351372.96 | G21: 40067714.31 | H21: 41320170.84 | J21: =SUM(J17:J20) -> 161975719.7
B23: Pricing based on 2015/16 Base smoothed
C25: CPI | E25: ='Price Path Calc'!E58 -> 0.0238 | F25: ='Price Path Calc'!F58 -> 0.0238 | G25: ='Price Path Calc'!G58 -> 0.0238 | H25: ='Price Path Calc'!H58 -> 0.0238
C26: X | E26: ='Price Path Calc'!E59 -> 0.0007405610956 | F26: ='Price Path Calc'!F59 -> 0.0007405610956 | G26: ='Price Path Calc'!G59 -> 0.0007405610956 | H26: ='Price Path Calc'!H59 -> 0.0007405610956
B28: $ per luminaire per day | C28: =YEAR_0 -> 2014/15 | D28: =YEAR_1 -> 2015/16 | E28: =YEAR_2 -> 2016/17 | F28: =YEAR_3 -> 2017/18 | G28: =YEAR_4 -> 2018/19 | H28: =YEAR_5 -> 2019/20
B29: Rate 1 - Major (15/16) | C29: ='Price Path Calc'!C62 -> 1.2 | D29: ='Price Path Calc'!D62 -> 0.7787326751 | E29: ='Price Path Calc'!E62 -> 0.7966760882 | F29: ='Price Path Calc'!F62 -> 0.8150329501 | G29: ='Price Path Calc'!G62 -> 0.8338127873 | H29: ='Price Path Calc'!H62 -> 0.8530253461
B30: ROA & Depn | D30: ='Price Path Calc'!D63 -> 0.5079099235 | E30: ='Price Path Calc'!E63 -> 0.5196130893 | F30: ='Price Path Calc'!F63 -> 0.5315859172 | G30: ='Price Path Calc'!G63 -> 0.5438346208 | H30: ='Price Path Calc'!H63 -> 0.5563655567
B31: Opex | D31: ='Price Path Calc'!D64 -> 0.2708227515 | E31: ='Price Path Calc'!E64 -> 0.2770629989 | F31: ='Price Path Calc'!F64 -> 0.2834470328 | G31: ='Price Path Calc'!G64 -> 0.2899781665 | H31: ='Price Path Calc'!H64 -> 0.2966597894
B32: Rate 1 - Minor (15/16) | C32: ='Price Path Calc'!C65 -> 0.48 | D32: ='Price Path Calc'!D65 -> 0.3568659837 | E32: ='Price Path Calc'!E65 -> 0.3650888231 | F32: ='Price Path Calc'!F65 -> 0.3735011317 | G32: ='Price Path Calc'!G65 -> 0.3821072752 | H32: ='Price Path Calc'!H65 -> 0.3909117197
B33: ROA & Depn | D33: ='Price Path Calc'!D66 -> 0.2260883196 | E33: ='Price Path Calc'!E66 -> 0.2312978045 | F33: ='Price Path Calc'!F66 -> 0.2366273254 | G33: ='Price Path Calc'!G66 -> 0.2420796481 | H33: ='Price Path Calc'!H66 -> 0.2476576022
B34: Opex | D34: ='Price Path Calc'!D67 -> 0.1307776641 | E34: ='Price Path Calc'!E67 -> 0.1337910186 | F34: ='Price Path Calc'!F67 -> 0.1368738063 | G34: ='Price Path Calc'!G67 -> 0.1400276271 | H34: ='Price Path Calc'!H67 -> 0.1432541175
B35: Rate 2 - Major (15/16)
B36: Opex | C36: ='Price Path Calc'!C69 -> 0.33 | D36: ='Price Path Calc'!D69 -> 0.2708227515 | E36: ='Price Path Calc'!E69 -> 0.2770629989 | F36: ='Price Path Calc'!F69 -> 0.2834470328 | G36: ='Price Path Calc'!G69 -> 0.2899781665 | H36: ='Price Path Calc'!H69 -> 0.2966597894
B37: Rate 2 - Minor (15/16)
B38: Opex | C38: ='Price Path Calc'!C71 -> 0.13 | D38: ='Price Path Calc'!D71 -> 0.1307776641 | E38: ='Price Path Calc'!E71 -> 0.1337910186 | F38: ='Price Path Calc'!F71 -> 0.1368738063 | G38: ='Price Path Calc'!G71 -> 0.1400276271 | H38: ='Price Path Calc'!H71 -> 0.1432541175
B40: Total Revenue | C40: =YEAR_0 -> 2014/15 | D40: =YEAR_1 -> 2015/16 | E40: =YEAR_2 -> 2016/17 | F40: =YEAR_3 -> 2017/18 | G40: =YEAR_4 -> 2018/19 | H40: =YEAR_5 -> 2019/20 | J40: NPV
B41: Non-contributed - Major | D41: ='Price Path Calc'!D80 -> 11343062.98 | E41: ='Price Path Calc'!E80 -> 11603264.57 | F41: ='Price Path Calc'!F80 -> 11869434.88 | G41: ='Price Path Calc'!G80 -> 12141710.82 | H41: ='Price Path Calc'!H80 -> 12420232.44 | J41: =NPV(WACC,D41:H41) -> 50099626.08 | K41: =J41/$J$21 -> 0.309303309 | L41: =K41+K43 -> 0.4503094053
B42: Non-contributed - Minor | D42: ='Price Path Calc'!D81 -> 14124839.5 | E42: ='Price Path Calc'!E81 -> 14449102.1 | F42: ='Price Path Calc'!F81 -> 14780808.66 | G42: ='Price Path Calc'!G81 -> 15119990.61 | H42: ='Price Path Calc'!H81 -> 15466955.79 | J42: =NPV(WACC,D42:H42) -> 62387826.98 | K42: =J42/$J$21 -> 0.3851677714 | L42: =K42+K44 -> 0.544216902
B43: Contributed - Major | D43: ='Price Path Calc'!D82 -> 4863731.523 | E43: ='Price Path Calc'!E82 -> 5135380.693 | F43: ='Price Path Calc'!F82 -> 5419656.078 | G43: ='Price Path Calc'!G82 -> 5717268.977 | H43: ='Price Path Calc'!H82 -> 6028751.389 | J43: =NPV(WACC,D43:H43) -> 22839563.93 | K43: =J43/$J$21 -> 0.1410060963
B44: Contributed - Minor | D44: ='Price Path Calc'!D83 -> 5478270.464 | E44: ='Price Path Calc'!E83 -> 5788554.048 | F44: ='Price Path Calc'!F83 -> 6113425.445 | G44: ='Price Path Calc'!G83 -> 6453465.851 | H44: ='Price Path Calc'!H83 -> 6809486.349 | J44: =NPV(WACC,D44:H44) -> 25762097.4 | K44: =J44/$J$21 -> 0.1590491306
D45: =SUM(D41:D44) -> 35809904.46 | E45: =SUM(E41:E44) -> 36976301.41 | F45: 38183325.07 | G45: 39432436.26 | H45: 40725425.96 | J45: =SUM(J41:J44) -> 161089114.4
D47: =YEAR_1 -> 2015/16 | E47: =YEAR_2 -> 2016/17 | F47: =YEAR_3 -> 2017/18 | G47: =YEAR_4 -> 2018/19 | H47: =YEAR_5 -> 2019/20 | J47: NPV
B48: Non-contributed - Major | D48: =D41-$D$17 -> 0 | E48: =E41-$E$17 -> -87748.08358 | F48: =F41-$F$17 -> -327622.3525 | G48: =G41-$G$17 -> -571900.1482 | H48: =H41-$H$17 -> -740950.8943 | J48: =NPV(WACC,D48:H48) -> -1367753.698
B49: Non-contributed - Minor | D49: =D42-$D$18 -> 0 | E49: =E42-$E$18 -> -94145.41027 | F49: =F42-$F$18 -> -383840.3712 | G49: =G42-$G$18 -> -681290.6428 | H49: =H42-$H$18 -> -876113.7826 | J49: =NPV(WACC,D49:H49) -> -1609725.095
B50: Contributed - Major | D50: =D43-$D$19 -> 0 | E50: =E43-$E$19 -> 197558.0944 | F50: =F43-$F$19 -> 259704.6936 | G50: =G43-$G$19 -> 297092.0532 | H50: =H43-$H$19 -> 489311.8778 | J50: =NPV(WACC,D50:H50) -> 1000207.968
B51: Contributed - Minor | D51: =D44-$D$20 -> 0 | E51: =E44-$E$20 -> 218207.4699 | F51: =F44-$F$20 -> 283710.1376 | G51: =G44-$G$20 -> 320820.6828 | H51: =H44-$H$20 -> 533007.9243 | J51: =NPV(WACC,D51:H51) -> 1090665.509
D52: =SUM(D48:D51) -> 0 | E52: =SUM(E48:E51) -> 233872.0705 | F52: -168047.8924 | G52: -635278.0549 | H52: -594744.8747 | J52: =SUM(J48:J51) -> -886605.3169

Sheet Price Path Calc
A2: PTRM Output - pre smoothed
C4: =YEAR_0 -> 2014/15 | D4: =YEAR_1 -> 2015/16 | E4: =YEAR_2 -> 2016/17 | F4: =YEAR_3 -> 2017/18 | G4: =YEAR_4 -> 2018/19 | H4: =YEAR_5 -> 2019/20 | J4: NPV
B5: ROA & Depn (incl Tax) | D5: ='PTRM output'!D36 -> 16346872.7 | E5: ='PTRM output'!E36 -> 17258751.53 | F5: ='PTRM output'!F36 -> 18266406.58 | G5: ='PTRM output'!G36 -> 19246304.66 | H5: ='PTRM output'!H36 -> 20311018.4
B6: O&M (incl Tax) | D6: ='PTRM output'!D37 -> 19463031.76 | E6: ='PTRM output'!E37 -> 19483677.81 | F6: ='PTRM output'!F37 -> 20084966.38 | G6: ='PTRM output'!G37 -> 20821409.65 | H6: ='PTRM output'!H37 -> 21009152.44
C7: 44390000 | D7: =SUM(D5:D6) -> 35809904.46 | E7: =SUM(E5:E6) -> 36742429.34 | F7: 38351372.96 | G7: 40067714.31 | H7: 41320170.84 | J7: =NPV(WACC,'Price Path Calc'!D7:H7) -> 161975719.7
D8: =(D7/C7)-1 -> -0.1932889286 | E8: =(E7/D7)-1 -> 0.0260409765 | F8: 0.04378979968 | G8: 0.04475306149 | H8: 0.03125849695
A9: Forecast Luminaires | D9: 39400000
D10: =(D9/C7)-1 -> -0.1124127056
B11: Luminaires for each Streetlight Tariff Class (avg for year) | C11: =YEAR_0 -> 2014/15 | D11: =YEAR_1 -> 2015/16 | E11: =YEAR_2 -> 2016/17 | F11: =YEAR_3 -> 2017/18 | G11: =YEAR_4 -> 2018/19 | H11: =YEAR_5 -> 2019/20
B12: Non-contributed - Major | C12: =ROUND('Demand Forecast'!$B33,0) -> 39911 | D12: =ROUND('Demand Forecast'!$B34,0) -> 39907 | E12: =ROUND('Demand Forecast'!$B35,0) -> 39903 | F12: =ROUND('Demand Forecast'!$B36,0) -> 39899 | G12: =ROUND('Demand Forecast'!$B37,0) -> 39895 | H12: =ROUND('Demand Forecast'!$B38,0) -> 39891
B13: Non-contributed - Minor | C13: =ROUND('Demand Forecast'!$D33,0) -> 108449 | D13: =ROUND('Demand Forecast'!$D34,0) -> 108439 | E13: =ROUND('Demand Forecast'!$D35,0) -> 108430 | F13: =ROUND('Demand Forecast'!$D36,0) -> 108421 | G13: =ROUND('Demand Forecast'!$D37,0) -> 108411 | H13: =ROUND('Demand Forecast'!$D38,0) -> 108401
B14: Contributed - Major | C14: =ROUND('Demand Forecast'!$I33,0) -> 47652 | D14: =ROUND('Demand Forecast'!$I34,0) -> 49203 | E14: =ROUND('Demand Forecast'!$I35,0) -> 50781 | F14: =ROUND('Demand Forecast'!$I36,0) -> 52385 | G14: =ROUND('Demand Forecast'!$I37,0) -> 54017 | H14: =ROUND('Demand Forecast'!$I38,0) -> 55677
B15: Contributed - Minor | C15: =ROUND('Demand Forecast'!$K33,0) -> 111062 | D15: =ROUND('Demand Forecast'!$K34,0) -> 114767 | E15: =ROUND('Demand Forecast'!$K35,0) -> 118536 | F15: =ROUND('Demand Forecast'!$K36,0) -> 122369 | G15: =ROUND('Demand Forecast'!$K37,0) -> 126266 | H15: =ROUND('Demand Forecast'!$K38,0) -> 130231
D16: =SUM(D12:D15) -> 312316 | E16: =SUM(E12:E15) -> 317650 | F16: =SUM(F12:F15) -> 323074 | G16: 328589 | H16: =SUM(H12:H15) -> 334200
B18: % split in Street Light Asset Base derived from standard estimates and number of lamps per streetlight type
B19: Major | D19: =ROA_Major -> 0.4525785462
B20: Minor | D20: =ROA_Minor -> 0.5474214538
B22: % weighting | C22: =YEAR_0 -> 2014/15 | D22: =YEAR_1 -> 2015/16 | E22: =YEAR_2 -> 2016/17 | F22: =YEAR_3 -> 2017/18 | G22: =YEAR_4 -> 2018/19 | H22: =YEAR_5 -> 2019/20
B23: Non-contributed - Major | C23: =C12/(C12+C14) -> 0.4557975401 | D23: =D12/(D12+D14) -> 0.4478397486 | E23: 0.4400224957 | F23: 0.4323501365 | G23: 0.4248125905 | H23: 0.4174095932
B24: Non-contributed - Minor | C24: 0.4940481343 | D24: 0.4858247538 | E24: 0.4777367535 | F24: 0.4697820529 | G24: 0.4619583513 | H24: 0.454260116
B25: Contributed - Major | C25: =C14/(C12+C14) -> 0.5442024599 | D25: 0.5521602514 | E25: 0.5599775043 | F25: 0.5676498635 | G25: 0.5751874095 | H25: 0.5825904068
B26: Contributed - Minor | C26: 0.5059518657 | D26: 0.5141752462 | E26: 0.5222632465 | F26: 0.5302179471 | G26: 0.5380416487 | H26: 0.545739884
A28: Calculated $ per luminaire per day
B30: $ per luminaire per day | C30: =YEAR_0 -> 2014/15 | D30: =YEAR_1 -> 2015/16 | E30: =YEAR_2 -> 2016/17 | F30: =YEAR_3 -> 2017/18 | G30: =YEAR_4 -> 2018/19 | H30: =YEAR_5 -> 2019/20
B31: Rate 1 - Major | C31: 1.2 | D31: =SUM(D32:D33) -> 0.7787326751 | E31: =SUM(E32:E33) -> 0.8027008409 | F31: 0.8375296414 | G31: 0.8730871255 | H31: 0.9039140792
B32: ROA & Depn | C32: =0.7367/(0.7367+0.2751)*C$31 -> 0.8737299862 | D32: =D$5*ROA_Major/D12/365 -> 0.5079099235 | E32: =E5*ROA_Major/E12/365 -> 0.5362964556 | F32: =F5*ROA_Major/F12/365 -> 0.567665117 | G32: =G5*ROA_Major/G12/365 -> 0.5981773787 | H32: =H5*ROA_Major/H12/365 -> 0.6313321045
B33: Opex | C33: =0.2751/(0.7367+0.2751)*C$31 -> 0.3262700138 | D33: =D$6*ROA_Major*D23/D12/365 -> 0.2708227515 | E33: =E6*ROA_Major*E23/E12/365 -> 0.2664043854 | F33: =F6*ROA_Major*F23/F12/365 -> 0.2698645243 | G33: =G6*ROA_Major*G23/G12/365 -> 0.2749097468 | H33: =H6*ROA_Major*H23/H12/365 -> 0.2725819747
B34: Rate 1 - Minor | C34: 0.48 | D34: =SUM(D35:D36) -> 0.3568659837 | E34: =SUM(E35:E36) -> 0.3674676171 | F34: 0.3832005207 | G34: 0.3993246212 | H34: 0.4130546126
B35: ROA & Depn | C35: =0.2935/(0.2935+0.1125)*C$34 -> 0.3469950739 | D35: =D$5*ROA_Minor/D13/365 -> 0.2260883196 | E35: =E$5*ROA_Minor/E13/365 -> 0.2387200341 | F35: =F$5*ROA_Minor/F13/365 -> 0.2526787157 | G35: =G$5*ROA_Minor/G13/365 -> 0.2662581775 | H35: =H$5*ROA_Minor/H13/365 -> 0.281013614
B36: Opex | C36: =0.1125/(0.2935+0.1125)*C$34 -> 0.1330049261 | D36: =D$6*ROA_Minor*D24/D13/365 -> 0.1307776641 | E36: =E$6*ROA_Minor*E24/E13/365 -> 0.128747583 | F36: =F$6*ROA_Minor*F24/F13/365 -> 0.130521805 | G36: =G$6*ROA_Minor*G24/G13/365 -> 0.1330664437 | H36: =H$6*ROA_Minor*H24/H13/365 -> 0.1320409987
B37: Rate 2 - Major
B38: Opex | C38: 0.33 | D38: =D$6*ROA_Major*D25/D14/365 -> 0.2708227515 | E38: =E$6*ROA_Major*E25/E14/365 -> 0.2664043854 | F38: =F$6*ROA_Major*F25/F14/365 -> 0.2698645243 | G38: =G$6*ROA_Major*G25/G14/365 -> 0.2749097468 | H38: =H$6*ROA_Major*H25/H14/365 -> 0.2725819747
B39: Rate 2 - Minor
B40: Opex | C40: 0.13 | D40: =D$6*ROA_Minor*D26/D15/365 -> 0.1307776641 | E40: =E$6*ROA_Minor*E26/E15/365 -> 0.128747583 | F40: =F$6*ROA_Minor*F26/F15/365 -> 0.130521805 | G40: =G$6*ROA_Minor*G26/G15/365 -> 0.1330664437 | H40: =H$6*ROA_Minor*H26/H15/365 -> 0.1320409987
B42: Tariff Increase | C42: =YEAR_0 -> 2014/15 | D42: =YEAR_1 -> 2015/16 | E42: =YEAR_2 -> 2016/17 | F42: =YEAR_3 -> 2017/18 | G42: =YEAR_4 -> 2018/19 | H42: =YEAR_5 -> 2019/20
B43: Non-contributed - Major | D43: =(D31-C31)/C31 -> -0.3510561041 | E43: =(E31-D31)/D31 -> 0.03077842578 | F43: 0.04338951534 | G43: 0.04245519487 | H43: 0.03530799248
B44: Non-contributed - Minor | D44: =(D34-C34)/C34 -> -0.2565292007 | E44: =(E34-D34)/D34 -> 0.02970760431 | F44: 0.04281439476 | G44: 0.04207744939 | H44: 0.03438303244
B45: Contributed - Major | D45: =(D38-C38)/C38 -> -0.1793249954 | E45: =(E38-D38)/D38 -> -0.01631460485 | F45: 0.01298829584 | G45: 0.01869538961 | H45: -0.008467404573
B46: Contributed - Minor | D46: =(D40-C40)/C40 -> 0.005982031454 | E46: =(E40-D40)/D40 -> -0.01552314826 | F46: 0.01378062388 | G46: 0.0194958896 | H46: -0.007706263337
B48: Total Revenue | C48: =YEAR_0 -> 2014/15 | D48: =YEAR_1 -> 2015/16 | E48: =YEAR_2 -> 2016/17 | F48: =YEAR_3 -> 2017/18 | G48: =YEAR_4 -> 2018/19 | H48: =YEAR_5 -> 2019/20 | J48: NPV
B49: Non-contributed - Major | D49: =D12*D31*365 -> 11343062.98 | E49: =E12*E31*365 -> 11691012.65 | F49: =F12*F31*365 -> 12197057.23 | G49: 12713610.97 | H49: 13161183.33 | J49: =NPV(WACC,D49:H49) -> 51467379.77 | K49: =J49/$J$53 -> 0.3177474986 | L49: =K49+K51 -> 0.4525785462 | M49: =J49/(J49+J50) -> 0.4457403555
B50: Non-contributed - Minor | D50: =D13*D34*365 -> 14124839.5 | E50: =E13*E34*365 -> 14543247.51 | F50: =F13*F34*365 -> 15164649.03 | G50: 15801281.25 | H50: 16343069.57 | J50: =NPV(WACC,D50:H50) -> 63997552.08 | K50: =J50/$J$53 -> 0.3951058356 | L50: =K50+K52 -> 0.5474214538 | M50: =J50/(J50+J49) -> 0.5542596445
B51: Contributed - Major | D51: =D14*D38*365 -> 4863731.523 | E51: =E14*E38*365 -> 4937822.599 | F51: 5159951.384 | G51: 5420176.923 | H51: 5539439.511 | J51: =NPV(WACC,D51:H51) -> 21839355.96 | K51: =J51/$J$53 -> 0.1348310475 | M51: =J51/(J51+J52) -> 0.4695546339
B52: Contributed - Minor | D52: =D15*D40*365 -> 5478270.464 | E52: =E15*E40*365 -> 5570346.578 | F52: 5829715.308 | G52: 6132645.169 | H52: 6276478.424 | J52: =NPV(WACC,D52:H52) -> 24671431.89 | K52: =J52/$J$53 -> 0.1523156183 | M52: =J52/(J52+J51) -> 0.5304453661
D53: =SUM(D49:D52) -> 35809904.46 | E53: =SUM(E49:E52) -> 36742429.34 | F53: 38351372.96 | G53: 40067714.31 | H53: 41320170.84 | J53: =SUM(J49:J52) -> 161975719.7
E54: =E53/D53-1 -> 0.0260409765 | F54: =F53/E53-1 -> 0.04378979968 | G54: =G53/F53-1 -> 0.04475306149 | H54: =H53/G53-1 -> 0.03125849695
A56: Smoothed $ per luminaire per day - what % year on year for each year across all 4 tariffs gives you the same NPV as above (15/16 Base)
C58: CPI | E58: 0.0238 | F58: 0.0238 | G58: 0.0238 | H58: 0.0238
C59: X | E59: 0.0007405610956 | F59: =E59 -> 0.0007405610956 | G59: =F59 -> 0.0007405610956 | H59: =G59 -> 0.0007405610956
B61: $ per luminaire per day (smoothed) | C61: =YEAR_0 -> 2014/15 | D61: =YEAR_1 -> 2015/16 | E61: =YEAR_2 -> 2016/17 | F61: =YEAR_3 -> 2017/18 | G61: =YEAR_4 -> 2018/19 | H61: =YEAR_5 -> 2019/20
B62: Rate 1 - Major | C62: =$C$31 -> 1.2 | D62: =SUM(D63:D64) -> 0.7787326751 | E62: =SUM(E63:E64) -> 0.7966760882 | F62: 0.8150329501 | G62: 0.8338127873 | H62: 0.8530253461 | J62: =D62/C62-1 -> -0.3510561041
B63: ROA & Depn | C63: =C32 -> 0.8737299862 | D63: =$D$32 -> 0.5079099235 | E63: =D63*(1+E$58)*(1-E$59) -> 0.5196130893 | F63: =E63*(1+F$58)*(1-F$59) -> 0.5315859172 | G63: =F63*(1+G$58)*(1-G$59) -> 0.5438346208 | H63: =G63*(1+H$58)*(1-H$59) -> 0.5563655567 | J63: -0.4186877736
B64: Opex | C64: =C33 -> 0.3262700138 | D64: =$D$33 -> 0.2708227515 | E64: =D64*(1+E$58)*(1-E$59) -> 0.2770629989 | F64: =E64*(1+F$58)*(1-F$59) -> 0.2834470328 | G64: 0.2899781665 | H64: 0.2966597894 | J64: -0.1699428693
B65: Rate 1 - Minor | C65: =$C$34 -> 0.48 | D65: =SUM(D66:D67) -> 0.3568659837 | E65: =SUM(E66:E67) -> 0.3650888231 | F65: 0.3735011317 | G65: 0.3821072752 | H65: 0.3909117197 | J65: -0.2565292007
B66: ROA & Depn | C66: =C35 -> 0.3469950739 | D66: =$D$35 -> 0.2260883196 | E66: =D66*(1+E$58)*(1-E$59) -> 0.2312978045 | F66: =E66*(1+F$58)*(1-F$59) -> 0.2366273254 | G66: 0.2420796481 | H66: 0.2476576022 | J66: -0.348439397
B67: Opex | C67: =C36 -> 0.1330049261 | D67: =$D$36 -> 0.1307776641 | E67: =D67*(1+E$58)*(1-E$59) -> 0.1337910186 | F67: 0.1368738063 | G67: 0.1400276271 | H67: 0.1432541175 | J67: -0.01674571074
B68: Rate 2 - Major
B69: Opex | C69: =$C$38 -> 0.33 | D69: =$D$38 -> 0.2708227515 | E69: =D69*(1+E$58)*(1-E$59) -> 0.2770629989 | F69: =E69*(1+F$58)*(1-F$59) -> 0.2834470328 | G69: 0.2899781665 | H69: 0.2966597894 | J69: =D69/C69-1 -> -0.1793249954
B70: Rate 2 - Minor
B71: Opex | C71: =$C$40 -> 0.13 | D71: =$D$40 -> 0.1307776641 | E71: =D71*(1+E$58)*(1-E$59) -> 0.1337910186 | F71: =E71*(1+F$58)*(1-F$59) -> 0.1368738063 | G71: 0.1400276271 | H71: 0.1432541175 | J71: =D71/C71-1 -> 0.005982031454
B73: Tariff Increase | C73: =YEAR_0 -> 2014/15 | D73: =YEAR_1 -> 2015/16 | E73: =YEAR_2 -> 2016/17 | F73: =YEAR_3 -> 2017/18 | G73: =YEAR_4 -> 2018/19 | H73: =YEAR_5 -> 2019/20
B74: Non-contributed - Major | D74: =(D62-C62)/C62 -> -0.3510561041 | E74: =(E62-D62)/D62 -> 0.02304181355 | F74: 0.02304181355 | G74: 0.02304181355 | H74: 0.02304181355
B75: Non-contributed - Minor | D75: =(D65-C65)/C65 -> -0.2565292007 | E75: =(E65-D65)/D65 -> 0.02304181355 | F75: 0.02304181355 | G75: 0.02304181355 | H75: 0.02304181355
B76: Contributed - Major | D76: =(D69-C69)/C69 -> -0.1793249954 | E76: =(E69-D69)/D69 -> 0.02304181355 | F76: 0.02304181355 | G76: 0.02304181355 | H76: 0.02304181355
B77: Contributed - Minor | D77: =(D71-C71)/C71 -> 0.005982031454 | E77: =(E71-D71)/D71 -> 0.02304181355 | F77: 0.02304181355 | G77: 0.02304181355 | H77: 0.02304181355
B79: Total Revenue | C79: =YEAR_0 -> 2014/15 | D79: =YEAR_1 -> 2015/16 | E79: =YEAR_2 -> 2016/17 | F79: =YEAR_3 -> 2017/18 | G79: =YEAR_4 -> 2018/19 | H79: =YEAR_5 -> 2019/20 | J79: NPV
B80: Non-contributed - Major | D80: =D62*D12*365 -> 11343062.98 | E80: =E62*E12*365 -> 11603264.57 | F80: 11869434.88 | G80: 12141710.82 | H80: 12420232.44 | J80: =NPV(WACC,D80:H80) -> 50099626.08 | K80: =J80-$J$49 -> -1367753.698
B81: Non-contributed - Minor | D81: =D65*D13*365 -> 14124839.5 | E81: =E65*E13*365 -> 14449102.1 | F81: 14780808.66 | G81: 15119990.61 | H81: 15466955.79 | J81: =NPV(WACC,D81:H81) -> 62387826.98 | K81: =J81-$J$50 -> -1609725.095
B82: Contributed - Major | D82: =D69*D14*365 -> 4863731.523 | E82: =E69*E14*365 -> 5135380.693 | F82: 5419656.078 | G82: 5717268.977 | H82: 6028751.389 | J82: =NPV(WACC,D82:H82) -> 22839563.93 | K82: =J82-$J$51 -> 1000207.968
B83: Contributed - Minor | D83: =D71*D15*365 -> 5478270.464 | E83: =E71*E15*365 -> 5788554.048 | F83: 6113425.445 | G83: 6453465.851 | H83: 6809486.349 | J83: =NPV(WACC,D83:H83) -> 25762097.4 | K83: =J83-$J$52 -> 1090665.509
D84: =SUM(D80:D83) -> 35809904.46 | E84: =SUM(E80:E83) -> 36976301.41 | F84: 38183325.07 | G84: 39432436.26 | H84: 40725425.96 | J84: =SUM(J80:J83) -> 161089114.4 | K84: -886605.3169
C85: De-escalated to 14/15 | D85: =D84/(1+CPI) -> 34977441.35 | E85: =E84/(1+CPI)^2 -> 35277127.75 | F85: =F84/(1+CPI)^3 -> 35581837.27 | G85: =G84/(1+CPI)^4 -> 35891623.97 | H85: =H84/(1+CPI)^5 -> 36206788.86
D86: =D84-D53 -> 0 | E86: =E84-E53 -> 233872.0705 | F86: -168047.8924 | G86: -635278.0549 | H86: -594744.8747 | J86: =J84-J53 -> -886605.3169
B88: Capital Revenue Split | J88: NPV
B89: Major | D89: =D63*D12*365 -> 7398243.881 | E89: =E63*E12*365 -> 7567954.202 | F89: 7741557.477 | G89: 7919143.002 | H89: 8100802.125 | J89: =NPV(WACC,D89:H89) -> 32676293.25
B90: Minor | D90: =D66*D13*365 -> 8948628.82 | E90: =E66*E13*365 -> 9154061.643 | F90: 9364210.504 | G90: 9579095.306 | H90: 9798911.084 | J90: =NPV(WACC,D90:H90) -> 39525086.75
D91: =SUM(D89:D90) -> 16346872.7 | E91: =SUM(E89:E90) -> 16722015.85 | F91: =SUM(F89:F90) -> 17105767.98 | G91: =SUM(G89:G90) -> 17498238.31 | H91: =SUM(H89:H90) -> 17899713.21 | J91: =SUM(J89:J90) -> 72201380
D92: =D89/D91 -> 0.4525785462 | E92: =E89/E91 -> 0.4525742753 | F92: 0.4525700036 | G92: 0.4525680164 | H92: 0.4525660289 | J92: 0.4525715886
D93: =D90/D91 -> 0.5474214538 | E93: =E90/E91 -> 0.5474257247 | F93: 0.5474299964 | G93: 0.5474319836 | H93: 0.5474339711 | J93: =J90/J91 -> 0.5474284114
B94: Opex Revenue Split | J94: NPV
B95: Major - NC | D95: =D64*D12*365 -> 3944819.094 | E95: =E64*E12*365 -> 4035310.368 | F95: 4127877.405 | G95: 4222567.818 | H95: 4319430.315 | J95: =NPV(WACC,D95:H95) -> 17423332.83
B96: Minor - NC | D96: =D67*D13*365 -> 5176210.677 | E96: =E67*E13*365 -> 5295040.455 | F96: 5416598.16 | G96: 5540895.304 | H96: 5668044.703 | J96: =NPV(WACC,D96:H96) -> 22862740.23
B97: Major - Cont | D97: =D69*D14*365 -> 4863731.523 | E97: =E69*E14*365 -> 5135380.693 | F97: 5419656.078 | G97: 5717268.977 | H97: 6028751.389 | J97: =NPV(WACC,D97:H97) -> 22839563.93
B98: Minor - Cont | D98: =D71*D15*365 -> 5478270.464 | E98: =E71*E15*365 -> 5788554.048 | F98: 6113425.445 | G98: 6453465.851 | H98: 6809486.349 | J98: =NPV(WACC,D98:H98) -> 25762097.4
D99: =SUM(D95:D98) -> 19463031.76 | E99: 20254285.56 | F99: 21077557.09 | G99: 21934197.95 | H99: 22825712.76 | J99: 88887734.39
B100: Major | D100: =(D95+D97)/D99 -> 0.4525785462 | E100: =(E95+E97)/E99 -> 0.45277781 | F100: 0.4529715395 | G100: 0.4531661845 | H100: 0.4533563449 | J100: =(J95+J97)/J99 -> 0.4529634717
B101: Minor | D101: =(D96+D98)/D99 -> 0.5474214538 | E101: =(E96+E98)/E99 -> 0.54722219 | F101: 0.5470284605 | G101: 0.5468338155 | H101: 0.5466436551 | J101: =(J96+J98)/J99 -> 0.5470365283
B102: Major | C102: NC | D102: =D95/(D95+D97) -> 0.4478397486 | E102: =E95/(E95+E97) -> 0.4400224957 | F102: 0.4323501365 | G102: 0.4248125905 | H102: 0.4174095932 | J102: =J95/(J95+J97) -> 0.4327391776
C103: Cont | D103: =D97/(D97+D95) -> 0.5521602514 | E103: =E97/(E97+E95) -> 0.5599775043 | F103: 0.5676498635 | G103: 0.5751874095 | H103: 0.5825904068 | J103: =J97/(J97+J95) -> 0.5672608224
B104: Minor | C104: NC | D104: =D96/(D96+D98) -> 0.4858247538 | E104: =E96/(E96+E98) -> 0.4777367535 | F104: 0.4697820529 | G104: 0.4619583513 | H104: 0.454260116 | J104: =J96/(J96+J98) -> 0.4701864591
C105: Cont | D105: =D98/(D98+D96) -> 0.5141752462 | E105: =E98/(E98+E96) -> 0.5222632465 | F105: 0.5302179471 | G105: 0.5380416487 | H105: 0.545739884 | J105: =J98/(J98+J96) -> 0.5298135409

Sheet PTRM output
B2: ALTERNATIVE CONTROL SERVICES: STREETLIGHTS - (NOMINAL)
A4: PTRM calculation to calculate return of, return on, operating and maintence & tax
C6: ='Demand Forecast'!$A$25-1&"/"&RIGHT('Demand Forecast'!$A$25,2) -> 2014/15 | D6: ='Demand Forecast'!$A$26-1&"/"&RIGHT('Demand Forecast'!$A$26,2) -> 2015/16 | E6: ='Demand Forecast'!$A$27-1&"/"&RIGHT('Demand Forecast'!$A$27,2) -> 2016/17 | F6: ='Demand Forecast'!$A$28-1&"/"&RIGHT('Demand Forecast'!$A$28,2) -> 2017/18 | G6: ='Demand Forecast'!$A$29-1&"/"&RIGHT('Demand Forecast'!$A$29,2) -> 2018/19 | H6: ='Demand Forecast'!$A$30-1&"/"&RIGHT('Demand Forecast'!$A$30,2) -> 2019/20
B7: ARR
B8: Return on capital | C8: 10700000 | D8: =[7]Analysis!G15*1000000 -> 7291124.485 | E8: =[7]Analysis!H15*1000000 -> 7448852.296 | F8: =[7]Analysis!I15*1000000 -> 7584746.515 | G8: =[7]Analysis!J15*1000000 -> 7717752.315 | H8: =[7]Analysis!K15*1000000 -> 7867664.507
B9: Return of capital | C9: 14000000 | D9: =[7]Analysis!G$20*1000000 -> 7755499.887 | E9: =[7]Analysis!H$20*1000000 -> 8509650.902 | F9: =[7]Analysis!I$20*1000000 -> 9343721.123 | G9: =[7]Analysis!J$20*1000000 -> 10171904.93 | H9: =[7]Analysis!K$20*1000000 -> 11075160.23
B10: O&M | C10: 14200000 | D10: =[7]Analysis!G$22*1000000 -> 17914920.69 | E10: =[7]Analysis!H$22*1000000 -> 17935566.75 | F10: =[7]Analysis!I$22*1000000 -> 18574545.93 | G10: =[7]Analysis!J$22*1000000 -> 19329697.67 | H10: =[7]Analysis!K$22*1000000 -> 19528986.71
B11: Benchmark Tax liability | C11: 2200000 | D11: =[7]Analysis!$G$28*1000000 -> 2848359.396 | E11: =[7]Analysis!$G$28*1000000 -> 2848359.396 | F11: =[7]Analysis!$G$28*1000000 -> 2848359.396 | G11: =[7]Analysis!$G$28*1000000 -> 2848359.396 | H11: =[7]Analysis!$G$28*1000000 -> 2848359.396
B12: Total unsmoothed revenue - before adjustments | C12: 42400000 | D12: =SUM(D8:D11) -> 35809904.46 | E12: =SUM(E8:E11) -> 36742429.34 | F12: =SUM(F8:F11) -> 38351372.96 | G12: =SUM(G8:G11) -> 40067714.31 | H12: =SUM(H8:H11) -> 41320170.84
B13: NPV | C13: =NPV(WACC,D12:H12) -> 161975719.7
B15: ADJUSTMENTS (Non-System Revenue allocation)
B16: Return on capital
B17: Return of capital
B18: O&M
B19: Benchmark Tax liability
B20: Total Adjustments
B23: Total Unsmoothed revenue after adjustments | D23: =D12+D20 -> 35809904.46 | E23: =E12+E20 -> 36742429.34 | F23: 38351372.96 | G23: 40067714.31 | H23: 41320170.84
B24: NPV | C24: =NPV(WACC,D23:H23) -> 161975719.7
B25: Total smoothed revenue after adjustments | C25: 46555354.49 | D25: =C25*(1-D28)*(1+CPI) -> 39951510.17 | E25: =D25*(1-E28)*(1+CPI) -> 40902356.11 | F25: =E25*(1-F28)*(1+CPI) -> 41875832.19 | G25: =F25*(1-G28)*(1+CPI) -> 42872476.99 | H25: =G25*(1-H28)*(1+CPI) -> 43892841.94 | I25: =H25/H23-1 -> 0.06226187
B26: NPV | C26: =NPV(WACC,D25:H25) -> 176743418.9
C27: =C24-C26 -> -14767699.18
B28: Adjusted revenue X factors | D28: 0.1617984931 | E28: 0 | F28: 0 | G28: 0 | H28: 0
B30: Smoothed
B31: ROA & Depn (incl Tax & Smoothing) | D31: =(D8+D9)/(D$8+D$9+D$10)*D$25 -> 18237475.38 | E31: =E8+E9+D$31/D$33*(E$25-E$8-E$9-E$10) -> 19157717.59 | F31: =F8+F9+$D$31/$D$33*(F$25-F$8-F$9-F$10) -> 19837597.29 | G31: =G8+G9+$D$31/$D$33*(G$25-G$8-G$9-G$10) -> 20470252.43 | H31: =H8+H9+$D$31/$D$33*(H$25-H$8-H$9-H$10) -> 21417472.38
B32: O&M (incl Tax & Smoothing) | D32: =(D10)/(D$8+D$9+D$10)*D$25 -> 21714034.79 | E32: =E10+D$32/D$33*(E$25-E$8-E$9-E$10) -> 21744638.52 | F32: =F10+$D$32/$D$33*(F$25-F$8-F$9-F$10) -> 22038234.9 | G32: =G10+$D$32/$D$33*(G$25-G$8-G$9-G$10) -> 22402224.56 | H32: =H10+$D$32/$D$33*(H$25-H$8-H$9-H$10) -> 22475369.57
D33: =SUM(D31:D32) -> 39951510.17 | E33: =SUM(E31:E32) -> 40902356.11 | F33: 41875832.19 | G33: 42872476.99 | H33: 43892841.94
B35: Not Smoothed
B36: ROA & Depn (incl Tax & Smoothing) | D36: =(D8+D9)/(D$8+D$9+D$10)*D$23 -> 16346872.7 | E36: =E8+E9+D$36/D$38*(E$23-E$8-E$9-E$10) -> 17258751.53 | F36: =F8+F9+E$36/E$38*(F$23-F$8-F$9-F$10) -> 18266406.58 | G36: 19246304.66 | H36: 20311018.4
B37: O&M (incl Tax & Smoothing) | D37: =(D10)/(D$8+D$9+D$10)*D$23 -> 19463031.76 | E37: =E10+D$37/D$38*(E$23-E$8-E$9-E$10) -> 19483677.81 | F37: =F10+E$37/E$38*(F$23-F$8-F$9-F$10) -> 20084966.38 | G37: 20821409.65 | H37: 21009152.44
D38: =SUM(D36:D37) -> 35809904.46 | E38: =SUM(E36:E37) -> 36742429.34 | F38: =SUM(F36:F37) -> 38351372.96 | G38: 40067714.31 | H38: 41320170.84

Sheet Demand Forecast
A1: FINAL Forecast of Street lights for 2015 -2020
T2: $ per light per day (Fixed) | Y2: % split based on lamps | AD2: % split based on lamps | AI2: Annual $ M | AO2: Revenue %
A3: Actual Street lights On Hand | T3: Rate 1 | V3: Rate 2 | Y3: Major | AA3: Minor | AD3: Major | AF3: Minor | AI3: Rate 1 | AK3: Rate 2 | AM3: Total
A4: EndFinancial Year | B4: Rate 1 Major | C4: % of Rate 1 | D4: Rate 1 Minor | E4: % of Rate 1 | F4: Rate 1 Total | G4: % Growth | I4: Rate 2 Major | J4: % of Rate 2 | K4: Rate 2 Minor | L4: % of Rate 2 | M4: Rate 2 Total | N4: % Growth | P4: Total | Q4: Growth | R4: % Growth | T4: Major | U4: Minor | V4: Major | W4: Minor | Y4: Rate 1 | Z4: Rate 2 | AA4: Rate 1 | AB4: Rate 2 | AD4: Rate 1 | AE4: Rate 2 | AF4: Rate 1 | AG4: Rate 2 | AI4: Major | AJ4: Minor | AK4: Major | AL4: Minor | AO4: Major | AP4: Minor
A5: 2002 | B5: 38923 | C5: =IF($F5=0,0,B5/$F5) -> 0.2686215916 | D5: 105976 | E5: =IF($F5=0,0,D5/$F5) -> 0.7313784084 | F5: =B5+D5 -> 144899 | I5: 24204 | J5: =IF($M5=0,0,I5/$M5) -> 0.295188731 | K5: 57791 | L5: =IF($M5=0,0,K5/$M5) -> 0.704811269 | M5: =I5+K5 -> 81995 | P5: =M5+F5 -> 226894 | Y5: =B5/(B5+I5) -> 0.6165824449 | Z5: =I5/(B5+I5) -> 0.3834175551 | AA5: =D5/(D5+K5) -> 0.647114498 | AB5: =K5/(D5+K5) -> 0.352885502 | AD5: =B5/P5 -> 0.171547066 | AE5: =I5/P5 -> 0.1066753638 | AF5: =D5/P5 -> 0.46707273 | AG5: =K5/P5 -> 0.2547048401
A6: 2003 | B6: 39435 | C6: =IF($F6=0,0,B6/$F6) -> 0.2697886023 | D6: 106735 | E6: 0.7302113977 | F6: 146170 | G6: =IF($P5=0,0,(F6-F5)/$P5) -> 0.005601734731 | I6: 25580 | J6: =IF($M6=0,0,I6/$M6) -> 0.2935876689 | K6: 61549 | L6: 0.7064123311 | M6: 87129 | N6: =IF($P5=0,0,(M6-M5)/$P5) -> 0.02262730614 | P6: =M6+F6 -> 233299 | Q6: =P6-P5 -> 6405 | R6: =IF(P5=0,0,(P6-P5)/P5) -> 0.02822904087 | Y6: 0.6065523341 | Z6: =I6/(B6+I6) -> 0.3934476659 | AA6: =D6/(D6+K6) -> 0.6342551877 | AB6: =K6/(D6+K6) -> 0.3657448123 | AD6: =B6/P6 -> 0.1690320147 | AE6: =I6/P6 -> 0.1096447049 | AF6: =D6/P6 -> 0.4575030326 | AG6: =K6/P6 -> 0.2638202478
A7: 2004 | B7: 39944 | C7: 0.2714176995 | D7: 107224 | E7: 0.7285823005 | F7: 147168 | G7: =IF($P6=0,0,(F7-F6)/$P6) -> 0.004277772301 | I7: 27043 | J7: 0.286767123 | K7: 67260 | L7: 0.713232877 | M7: 94303 | N7: =IF($P6=0,0,(M7-M6)/$P6) -> 0.03075023896 | P7: 241471 | Q7: 8172 | R7: =IF(P6=0,0,(P7-P6)/P6) -> 0.03502801126 | Y7: 0.5962948035 | Z7: 0.4037051965 | AA7: 0.6145205291 | AB7: 0.3854794709 | AD7: 0.16541945 | AE7: 0.1119927445 | AF7: 0.4440450406 | AG7: 0.278542765
A8: 2005 | B8: 40153 | C8: 0.2716233951 | D8: 107673 | E8: 0.7283766049 | F8: 147826 | G8: 0.002724964903 | I8: 29305 | J8: 0.2853567812 | K8: 73391 | L8: 0.7146432188 | M8: 102696 | N8: 0.034757797 | P8: 250522 | Q8: 9051 | R8: 0.03748276191 | Y8: 0.5780903568 | Z8: 0.4219096432 | AA8: 0.5946681836 | AB8: 0.4053318164 | AD8: 0.1602773409 | AE8: 0.1169757546 | AF8: 0.4297945889 | AG8: 0.2929523156
A9: 2006 | B9: 40306 | C9: 0.2718290767 | D9: 107971 | E9: 0.7281709233 | F9: 148277 | G9: 0.001800241097 | I9: 31066 | J9: 0.2838840559 | K9: 78366 | L9: 0.7161159441 | M9: 109432 | N9: 0.02688785815 | P9: 257709 | Q9: 7187 | R9: 0.02868809925 | Y9: 0.5647312672 | Z9: 0.4352687328 | AA9: 0.5794394028 | AB9: 0.4205605972 | AD9: 0.1564012122 | AE9: 0.1205468183 | AF9: 0.4189648014 | AG9: 0.3040871681
A10: 2007 | B10: 40388 | C10: 0.2721269944 | D10: 108028 | E10: 0.7278730056 | F10: 148416 | G10: 0.0005393680469 | I10: 32666 | J10: 0.2795310628 | K10: 84194 | L10: 0.7204689372 | M10: 116860 | N10: 0.02882320757 | P10: 265276 | Q10: 7567 | R10: 0.02936257562 | Y10: 0.5528513155 | Z10: 0.4471486845 | AA10: 0.5619960254 | AB10: 0.4380039746 | AD10: 0.1522489784 | AE10: 0.1231396734 | AF10: 0.4072286977 | AG10: 0.3173826505
A11: 2008 | B11: 40274 | C11: 0.271479609 | D11: 108076 | E11: 0.728520391 | F11: 148350 | G11: -0.0002487974789 | I11: 35212 | J11: 0.2814078384 | K11: 89916 | L11: 0.7185921616 | M11: 125128 | N11: 0.03116753871 | P11: 273478 | Q11: 8202 | R11: 0.03091874124 | Y11: 0.5335293962 | Z11: 0.4664706038 | AA11: 0.5458604388 | AB11: 0.4541395612 | AD11: 0.1472659592 | AE11: 0.1287562436 | AF11: 0.395190838 | AG11: 0.3287869591
A12: 2009 | B12: 40226 | C12: 0.2710208592 | D12: 108198 | E12: 0.7289791408 | F12: 148424 | G12: 0.0002705884934 | I12: 37267 | J12: 0.283727198 | K12: 94081 | L12: 0.716272802 | M12: 131348 | N12: 0.02274405985 | P12: 279772 | Q12: 6294 | R12: 0.02301464834 | Y12: =B12/(B12+I12) -> 0.519092047 | Z12: =I12/(B12+I12) -> 0.480907953 | AA12: =D12/(D12+K12) -> 0.5348948729 | AB12: =K12/(D12+K12) -> 0.4651051271 | AD12: 0.1437813648 | AE12: 0.1332048954 | AF12: 0.3867363425 | AG12: 0.3362773973
A13: 2010 | B13: 40251 | C13: 0.2710523303 | D13: 108248 | E13: 0.7289476697 | F13: 148499 | G13: 0.0002680754329 | I13: 39300 | J13: 0.2865350404 | K13: 97856 | L13: 0.7134649596 | M13: 137156 | N13: 0.02075976152 | P13: 285655 | Q13: 5883 | R13: 0.02102783695 | Y13: 0.5059772976 | Z13: 0.4940227024 | AA13: 0.5252105733 | AB13: 0.4747894267 | AD13: 0.1409077384 | AE13: 0.1375785475 | AF13: 0.3789466314 | AG13: 0.3425670827
A14: 2011 | B14: 40171 | C14: 0.2706575933 | D14: 108249 | E14: 0.7293424067 | F14: 148420 | G14: -0.0002765573857 | I14: 41804 | J14: 0.2916239388 | K14: 101545 | L14: 0.7083760612 | M14: 143349 | N14: 0.0216799986 | P14: 291769 | Q14: 6114 | R14: 0.02140344121 | T14: 0.85 | U14: 0.34 | V14: 0.23 | W14: 0.09 | Y14: 0.4900396462 | Z14: 0.5099603538 | AA14: 0.515977578 | AB14: 0.484022422 | AD14: 0.1376808366 | AE14: 0.14327773 | AF14: 0.3710092573 | AG14: 0.3480321761 | AI14: =T14*B14*365/1000000 -> 12.46305275 | AJ14: =U14*D14*365/1000000 -> 13.4337009 | AK14: =V14*I14*365/1000000 -> 3.5094458 | AL14: =W14*K14*365/1000000 -> 3.33575325 | AM14: =SUM(AI14:AL14) -> 32.7419527 | AO14: =(AI14+AK14)/AM14 -> 0.4878297485 | AP14: =(AJ14+AL14)/AM14 -> 0.5121702515
A15: 2012 | B15: 39932 | C15: 0.2693703539 | D15: 108310 | E15: 0.7306296461 | F15: =B15+D15 -> 148242 | G15: -0.0006100716663 | I15: 44170 | J15: 0.2967237453 | K15: 104689 | L15: 0.7032762547 | M15: 148859 | N15: 0.0188848027 | P15: 297101 | Q15: 5332 | R15: 0.01827473104 | T15: 0.89 | U15: 0.36 | V15: 0.24 | W15: 0.1 | Y15: 0.4748044042 | Z15: 0.5251955958 | AA15: 0.5085000399 | AB15: 0.4914999601 | AD15: 0.1344054715 | AE15: 0.1486699809 | AF15: 0.364556161 | AG15: 0.3523683865 | AI15: =T15*B15*365/1000000 -> 12.9719102 | AJ15: =U15*D15*365/1000000 -> 14.231934 | AK15: =V15*I15*365/1000000 -> 3.869292 | AL15: =W15*K15*365/1000000 -> 3.8211485 | AM15: =SUM(AI15:AL15) -> 34.8942847 | AO15: =(AI15+AK15)/AM15 -> 0.4826349743 | AP15: =(AJ15+AL15)/AM15 -> 0.5173650257
A16: 2013 | B16: 39780 | C16: 0.2685877873 | D16: 108328 | E16: 0.7314122127 | F16: =B16+D16 -> 148108 | G16: -0.0004510250723 | I16: 45898 | J16: 0.3001929429 | K16: 106997 | L16: 0.6998070571 | M16: 152895 | N16: 0.01358460591 | P16: 301003 | Q16: 3902 | R16: 0.01313358084 | T16: 1.01 | U16: 0.41 | V16: 0.27 | W16: 0.11 | Y16: 0.4642965522 | Z16: 0.5357034478 | AA16: 0.5030906769 | AB16: 0.4969093231 | AD16: 0.1321581512 | AE16: 0.1524835301 | AF16: 0.3598901008 | AG16: 0.3554682179 | AI16: =T16*B16*365/1000000 -> 14.664897 | AJ16: =U16*D16*365/1000000 -> 16.2112852 | AK16: =V16*I16*365/1000000 -> 4.5232479 | AL16: =W16*K16*365/1000000 -> 4.29592955 | AM16: =SUM(AI16:AL16) -> 39.69535965 | AO16: =(AI16+AK16)/AM16 -> 0.4833850876 | AP16: =(AJ16+AL16)/AM16 -> 0.5166149124
A17: 2014 | B17: 39913 | C17: 0.2690171603 | D17: 108453 | E17: 0.7309828397 | F17: =B17+D17 -> 148366 | G17: 0.0008571343143 | I17: 46883 | J17: 0.3003241346 | K17: 109225 | L17: 0.6996758654 | M17: 156108 | N17: 0.01067431222 | P17: 304474 | Q17: =P17-P16 -> 3471 | R17: =IF(P16=0,0,(P17-P16)/P16) -> 0.01153144653 | T17: 1.1 | U17: 0.44 | V17: 0.3 | W17: 0.12 | Y17: =B17/(B17+I17) -> 0.4598483801 | Z17: =I17/(B17+I17) -> 0.5401516199 | AA17: =D17/(D17+K17) -> 0.4982267386 | AB17: =K17/(D17+K17) -> 0.5017732614 | AD17: =B17/P17 -> 0.1310883688 | AE17: =I17/P17 -> 0.153980307 | AF17: =D17/P17 -> 0.356197902 | AG17: =K17/P17 -> 0.3587334222 | AI17: =T17*B17*365/1000000 -> 16.0250695 | AJ17: =U17*D17*365/1000000 -> 17.4175518 | AK17: =V17*I17*365/1000000 -> 5.1336885 | AL17: =W17*K17*365/1000000 -> 4.784055 | AM17: =SUM(AI17:AL17) -> 43.3603648 | AO17: =(AI17+AK17)/AM17 -> 0.4879746307 | AP17: =(AJ17+AL17)/AM17 -> 0.5120253693
A20: Average growth (of last 5 years) | C20: =AVERAGE(C13:C17) -> 0.269737045 | E20: =AVERAGE(E13:E17) -> 0.730262955 | G20: =AVERAGE(G13:G17) -> -4.248887542e-05 | J20: =AVERAGE(J13:J17) -> 0.2950799604 | L20: =AVERAGE(L13:L17) -> 0.7049200396 | N20: =AVERAGE(N13:N17) -> 0.01711669619 | R20: =AVERAGE(R13:R17) -> 0.01707420731 | Y20: =SUM($B$13:$B$17)/(SUM($B$13:$B$17)+SUM($I$13:$I$17)) -> 0.4784645852 | Z20: =SUM($I$13:$I$17)/(SUM($B$13:$B$17)+SUM($I$13:$I$17)) -> 0.5215354148 | AA20: =SUM($D$13:$D$17)/(SUM($D$13:$D$17)+SUM($K$13:$K$17)) -> 0.5100178925 | AB20: =SUM($K$13:$K$17)/(SUM($D$13:$D$17)+SUM($K$13:$K$17)) -> 0.4899821075
A21: Total split | G21: =G20/R20 -> -0.002488483046 | N21: =N20/R20 -> 1.002488483
Y22: % split based on lamps
A23: Forecast Street lights On Hand | Y23: Major | AA23: Minor
A24: Financial Year | B24: Rate 1 Major | D24: Rate 1 Minor | F24: Rate 1 Total | G24: Growth | I24: Rate 2 Major | K24: Rate 2 Minor | M24: Rate 2 Total | N24: Growth | P24: Total | Q24: Growth | R24: Check | Y24: Rate 1 | Z24: Rate 2 | AA24: Rate 1 | AB24: Rate 2
A25: =A17+1 -> 2015 | B25: =ROUND(B17+(F25-F17)*$C$20,0) -> 39909 | D25: =ROUND(D17+((F25-F17)*$E$20),0) -> 108444 | E25: =F25-D25-B25 -> 0 | F25: =ROUND(F17+(P17*$R$20)*$G$21,0) -> 148353 | I25: =ROUND(I17+(M25-M17)*J20,0) -> 48421 | K25: =ROUND(K17+((M25-M17)*L20),0) -> 112899 | L25: =M25-I25-K25 -> 0 | M25: =ROUND(M17+(P17*$R$20)*$N$21,0) -> 161320 | P25: =ROUND(P17*(1+$R$20),0) -> 309673 | Q25: =P25-M25-F25 -> 0 | R25: =M25+F25 -> 309673 | Y25: =B25/(B25+I25) -> 0.4518170497 | Z25: =I25/(B25+I25) -> 0.5481829503 | AA25: =D25/(D25+K25) -> 0.4899364335 | AB25: =K25/(D25+K25) -> 0.5100635665
A26: =A25+1 -> 2016 | B26: =ROUND(B25+(F26-F25)*$C$20,0) -> 39905 | D26: =ROUND(D25+((F26-F25)*$E$20),0) -> 108435 | E26: =F26-D26-B26 -> 0 | F26: =ROUND(F25+(P25*$R$20)*$G$21,0) -> 148340 | G26: =F26-F25 -> -13 | I26: =ROUND(I25+(M26-M25)*$J$20,0) -> 49985 | K26: =ROUND(K25+((M26-M25)*$L$20),0) -> 116636 | L26: =M26-I26-K26 -> 0 | M26: =ROUND(M25+(P25*$R$20)*$N$21,0) -> 166621 | N26: =M26-M25 -> 5301 | P26: =ROUND(P25*(1+$R$20),0) -> 314960 | Q26: =P26-P25 -> 5287 | R26: =P26-M26-F26 -> -1 | Y26: =B26/(B26+I26) -> 0.4439314718 | Z26: =I26/(B26+I26) -> 0.5560685282 | AA26: =D26/(D26+K26) -> 0.4817813046 | AB26: =K26/(D26+K26) -> 0.5182186954
A27: 2017 | B27: =ROUND(B26+(F27-F26)*$C$20,0) -> 39901 | D27: =ROUND(D26+((F27-F26)*$E$20),0) -> 108426 | E27: 0 | F27: =ROUND(F26+(P26*$R$20)*$G$21,0) -> 148327 | G27: =F27-F26 -> -13 | I27: =ROUND(I26+(M27-M26)*$J$20,0) -> 51576 | K27: =ROUND(K26+((M27-M26)*$L$20),0) -> 120436 | L27: 0 | M27: =ROUND(M26+(P26*$R$20)*$N$21,0) -> 172012 | N27: =M27-M26 -> 5391 | P27: =ROUND(P26*(1+$R$20),0) -> 320338 | Q27: =P27-P26 -> 5378 | R27: =P27-M27-F27 -> -1 | Y27: =B27/(B27+I27) -> 0.4361861452 | Z27: 0.5638138548 | AA27: 0.4737614807 | AB27: 0.5262385193
A28: 2018 | B28: 39897 | D28: 108416 | E28: 0 | F28: 148313 | G28: -14 | I28: 53194 | K28: 124301 | L28: 0 | M28: 177495 | N28: 5483 | P28: 325808 | Q28: 5470 | R28: 0 | Y28: 0.4285806362 | Z28: 0.5714193638 | AA28: 0.4658705638 | AB28: 0.5341294362
A29: 2019 | B29: 39893 | D29: 108406 | E29: 0 | F29: 148299 | G29: -14 | I29: 54840 | K29: 128232 | L29: 0 | M29: 183072 | N29: 5577 | P29: 331371 | Q29: 5563 | R29: 0 | Y29: 0.4211098561 | Z29: 0.5788901439 | AA29: 0.4581090104 | AB29: 0.5418909896
A30: 2020 | B30: 39889 | D30: 108396 | E30: 0 | F30: 148285 | G30: -14 | I30: 56514 | K30: 132230 | L30: 0 | M30: 188744 | N30: 5672 | P30: 337029 | Q30: 5658 | R30: 0 | Y30: 0.4137734303 | Z30: 0.5862265697 | AA30: 0.450475011 | AB30: 0.549524989
A32: Mid Year | B32: Rate 1 Major | D32: Rate 1 Minor | F32: Rate 1 Total | G32: check | I32: Rate 2 Major | K32: Rate 2 Minor | M32: Rate 2 Total | N32: check | P32: Total | R32: Check
A33: =DATEVALUE("31/12/"&A17) -> 2014-12-31 | B33: =ROUND(B17+(F33-F17)*$C$20,0) -> 39911 | D33: =ROUND(D17+((F33-F17)*$E$20),0) -> 108449 | F33: =ROUND(F17+(P17*$R$20/2)*$G$21,0) -> 148360 | I33: =ROUND(I17+(M33-M17)*$J$20,0) -> 47652 | K33: =ROUND(K17+((M33-M17)*$L$20),0) -> 111062 | M33: =ROUND(M17+(P17*$R$20/2)*$N$21,0) -> 158714 | P33: =ROUND(P17*(1+$R$20/2),0) -> 307073
A34: =DATEVALUE("31/12/"&A25) -> 2015-12-31 | B34: =ROUND(B25+(F34-F25)*$C$20,0) -> 39907 | D34: =ROUND(D25+((F34-F25)*$E$20),0) -> 108439 | F34: =ROUND(F25+(P25*$R$20/2)*$G$21,0) -> 148346 | G34: =F34-F33 -> -14 | I34: =ROUND(I25+(M34-M25)*$J$20,0) -> 49203 | K34: =ROUND(K25+((M34-M25)*$L$20),0) -> 114767 | M34: =ROUND(M25+(P25*$R$20/2)*$N$21,0) -> 163970 | N34: =M34-M33 -> 5256 | P34: =ROUND(P25*(1+$R$20/2),0) -> 312317 | Q34: =P34-P33 -> 5244 | Y34: =B34/(B34+I34) -> 0.4478397486 | Z34: =I34/(B34+I34) -> 0.5521602514 | AA34: =D34/(D34+K34) -> 0.4858247538 | AB34: =K34/(D34+K34) -> 0.5141752462 | AD34: =B34/P34 -> 0.1277772263 | AE34: =I34/P34 -> 0.1575418565 | AF34: =D34/P34 -> 0.3472081251 | AG34: =K34/P34 -> 0.3674695902
A35: =DATEVALUE("31/12/"&A26) -> 2016-12-31 | B35: =ROUND(B26+(F35-F26)*$C$20,0) -> 39903 | D35: =ROUND(D26+((F35-F26)*$E$20),0) -> 108430 | F35: =ROUND(F26+(P26*$R$20/2)*$G$21,0) -> 148333 | G35: =F35-F34 -> -13 | I35: =ROUND(I26+(M35-M26)*$J$20,0) -> 50781 | K35: =ROUND(K26+((M35-M26)*$L$20),0) -> 118536 | M35: =ROUND(M26+(P26*$R$20/2)*$N$21,0) -> 169317 | N35: =M35-M34 -> 5347 | P35: =ROUND(P26*(1+$R$20/2),0) -> 317649 | Q35: =P35-P34 -> 5332 | Y35: 0.4400224957 | Z35: 0.5599775043 | AA35: 0.4777367535 | AB35: 0.5222632465 | AD35: 0.1256197879 | AE35: 0.1598651342 | AF35: 0.3413516177 | AG35: 0.3731666084
A36: =DATEVALUE("31/12/"&A27) -> 2017-12-31 | B36: =ROUND(B27+(F36-F27)*$C$20,0) -> 39899 | D36: =ROUND(D27+((F36-F27)*$E$20),0) -> 108421 | F36: =ROUND(F27+(P27*$R$20/2)*$G$21,0) -> 148320 | G36: -13 | I36: =ROUND(I27+(M36-M27)*$J$20,0) -> 52385 | K36: =ROUND(K27+((M36-M27)*$L$20),0) -> 122369 | M36: =ROUND(M27+(P27*$R$20/2)*$N$21,0) -> 174754 | N36: 5437 | P36: =ROUND(P27*(1+$R$20/2),0) -> 323073 | Q36: 5424 | Y36: 0.4323501365 | Z36: 0.5676498635 | AA36: 0.4697820529 | AB36: 0.5302179471 | AD36: 0.1234984044 | AE36: 0.1621460165 | AF36: 0.3355928846 | AG36: 0.3787657898
A37: =DATEVALUE("31/12/"&A28) -> 2018-12-31 | B37: =ROUND(B28+(F37-F28)*$C$20,0) -> 39895 | D37: =ROUND(D28+((F37-F28)*$E$20),0) -> 108411 | F37: =ROUND(F28+(P28*$R$20/2)*$G$21,0) -> 148306 | G37: -14 | I37: =ROUND(I28+(M37-M28)*$J$20,0) -> 54017 | K37: =ROUND(K28+((M37-M28)*$L$20),0) -> 126266 | M37: =ROUND(M28+(P28*$R$20/2)*$N$21,0) -> 180283 | N37: 5529 | P37: =ROUND(P28*(1+$R$20/2),0) -> 328589 | Q37: 5516 | Y37: 0.4248125905 | Z37: 0.5751874095 | AA37: 0.4619583513 | AB37: 0.5380416487 | AD37: 0.1214130723 | AE37: 0.1643907739 | AF37: 0.3299288777 | AG37: 0.3842672761
A38: =DATEVALUE("31/12/"&A29) -> 2019-12-31 | B38: =ROUND(B29+(F38-F29)*$C$20,0) -> 39891 | D38: =ROUND(D29+((F38-F29)*$E$20),0) -> 108401 | F38: =ROUND(F29+(P29*$R$20/2)*$G$21,0) -> 148292 | G38: -14 | I38: =ROUND(I29+(M38-M29)*$J$20,0) -> 55677 | K38: =ROUND(K29+((M38-M29)*$L$20),0) -> 130231 | M38: =ROUND(M29+(P29*$R$20/2)*$N$21,0) -> 185908 | N38: 5625 | P38: =ROUND(P29*(1+$R$20/2),0) -> 334200 | Q38: 5611 | Y38: 0.4174095932 | Z38: 0.5825904068 | AA38: 0.454260116 | AB38: 0.545739884 | AD38: 0.1193626571 | AE38: 0.1665978456 | AF38: 0.3243596649 | AG38: 0.3896798324
A40: Average (5 yr) Additions | F40: 1125 | G40: as per email from Peter Grant 14/8/2014 | M40: 5689 | N40: as per email from Peter Grant 14/8/2014
A41: Average (5 yr) Disposals | E41: =F41/F40 -> 1.009777778 | F41: 1136 | G41: as per email from Peter Grant 14/8/2014 | L41: =M41/M40 -> 0.129548251 | M41: 737 | N41: as per email from Peter Grant 14/8/2014
E42: =F42/F41 -> -0.009683098592 | F42: =F40-F41 -> -11 | L42: =M42/M41 -> 6.719131615 | M42: =M40-M41 -> 4952
A44: Rate 1 (Financial Year) | E44: Additions | F44: Disposals | G44: Net | I44: Rate 2 (Financial Year) | L44: Additions | M44: Disposals | N44: Net | Q44: Total
A45: 2015/16 | E45: =ROUND(F45/$E$41,0) -> 1330 | F45: =ROUND(G26/$E$42,0) -> 1343 | G45: =E45-F45 -> -13 | I45: 2015/16 | L45: =ROUND(M45/$L$41,0) -> 6090 | M45: =ROUND(N26/$L$42,0) -> 789 | N45: =L45-M45 -> 5301 | Q45: =G45+N45 -> 5288
A46: 2016/17 | E46: =ROUND(F46/$E$41,0) -> 1330 | F46: =ROUND(G27/$E$42,0) -> 1343 | G46: =E46-F46 -> -13 | I46: 2016/17 | L46: =ROUND(M46/$L$41,0) -> 6191 | M46: =ROUND(N27/$L$42,0) -> 802 | N46: =L46-M46 -> 5389 | Q46: =G46+N46 -> 5376
A47: 2017/18 | E47: 1432 | F47: 1446 | G47: -14 | I47: 2017/18 | L47: 6299 | M47: 816 | N47: 5483 | Q47: 5469
A48: 2018/19 | E48: 1432 | F48: 1446 | G48: -14 | I48: 2018/19 | L48: 6407 | M48: 830 | N48: 5577 | Q48: 5563
A49: 2019/20 | E49: 1432 | F49: 1446 | G49: =E49-F49 -> -14 | I49: 2019/20 | L49: 6515 | M49: 844 | N49: 5671 | Q49: 5657

Sheet Distribution of Revenue
A1: Updated 3/3/2014 (data from Peter Grant)
C3: Category | D3: Unknown | E3: Aluminium | F3: Concrete | G3: Steel | H3: Wood | K3: Steel & Other | L3: Wood | O3: RAB from Roll Forward Model | P3: $ | Q3: Relativities | R3: %
B4: Major | C4: Rate 1 | D4: 2 | E4: 4 | F4: 1205 | G4: 13431 | H4: 25102 | I4: =SUM(D4:H4) -> 39744 | K4: =SUM(D4:G4) -> 14642 | L4: =H4 -> 25102 | M4: =SUM(K4:L4) -> 39744 | O4: OH Distiribution Line | P4: 1145.28 | Q4: =E14/E15 -> 0.6098187961 | R4: =P4/P6 -> 0.4179976058
C5: Rate 2 | E5: 9 | F5: 665 | G5: 34362 | H5: 11346 | I5: =SUM(D5:H5) -> 46382 | K5: =SUM(D5:G5) -> 35036 | L5: =H5 -> 11346 | M5: =SUM(K5:L5) -> 46382 | O5: UG Distribution Cable | P5: 1594.64 | Q5: 1 | R5: =P5/P6 -> 0.5820023942
B6: Minor | C6: Rate 1 | D6: 5 | E6: 314 | F6: 2137 | G6: 15477 | H6: 90433 | I6: =SUM(D6:H6) -> 108366 | K6: 17933 | L6: 90433 | M6: 108366 | P6: 2739.92 | R6: =SUM(R4:R5) -> 1
C7: Rate 2 | E7: 23 | F7: 317 | G7: 93452 | H7: 13931 | I7: =SUM(D7:H7) -> 107723 | K7: 93792 | L7: 13931 | M7: 107723
D8: =SUM(D4:D7) -> 7 | E8: =SUM(E4:E7) -> 350 | F8: 4324 | G8: 156722 | H8: =SUM(H4:H7) -> 140812 | K8: =SUM(K4:K7) -> 161403 | L8: =SUM(L4:L7) -> 140812 | M8: =SUM(M4:M7) -> 302215 | O8: Converted | Q8: Qty | R8: %
O9: OH Distiribution Line | P9: =P4/Q4 -> 1878.066087 | Q9: =R9*K4 -> 7918.505901 | R9: =P9/P11 -> 0.5408076698
O10: UG Distribution Cable | P10: =P5 -> 1594.64 | Q10: =R10*K4 -> 6723.494099 | R10: =P10/P11 -> 0.4591923302
B11: ROA | C11: (only relevant for Rate 1) | P11: =SUM(P9:P10) -> 3472.706087 | Q11: =SUM(Q9:Q10) -> 14642 | R11: =SUM(R9:R10) -> 1
D12: Std Est No | E12: Std Est | F12: Volume | G12: Installation Cost | I12: 2010/15
B13: Major | C13: Timber | D13: 92431 | E13: ='Standard Estimates'!$C$3 -> 2197 | F13: =L4 -> 25102 | G13: =E13*F13 -> 55149094
C14: Steel OH | D14: 92434 | E14: ='Standard Estimates'!$C$6 -> 8718 | F14: =Q9 -> 7918.505901 | G14: =E14*F14 -> 69033534.45
C15: Steel UG | D15: 92435 | E15: ='Standard Estimates'!$C$7 -> 14296.05 | F15: =Q10 -> 6723.494099 | G15: =E15*F15 -> 96119407.81
G16: =SUM(G13:G15) -> 220302036.3 | H16: =G16/($G$16+$G$19) -> 0.4525785462 | I16: 0.48
B17: Minor | C17: Timber | D17: 92430 | E17: ='Standard Estimates'!$C$2 -> 1299 | F17: =L6 -> 90433 | G17: =E17*F17 -> 117472467
C18: Steel | D18: 92432 92433 | E18: ='Standard Estimates'!$C$4 -> 8308.5 | F18: =K6 -> 17933 | G18: =E18*F18 -> 148996330.5
G19: =SUM(G17:G18) -> 266468797.5 | H19: =G19/($G$16+$G$19) -> 0.5474214538 | I19: 0.52
F20: =SUM(F13:F19) -> 148110
B21: O&M | C21: (Rate 1 & Rate2)
D22: Std Est No | E22: Std Est | F22: Volume | G22: Installation Cost
B23: Major | C23: Timber | D23: 92431 | E23: ='Standard Estimates'!$C$3 -> 2197 | F23: =L4+L5 -> 36448 | G23: =E23*F23 -> 80076256
C24: Steel OH | D24: 92434 | E24: ='Standard Estimates'!$C$6 -> 8718 | F24: =Q9+K5*R9 -> 26866.24342 | G24: =E24*F24 -> 234219910.1
C25: Steel UG | D25: 92435 | E25: ='Standard Estimates'!$C$7 -> 14296.05 | F25: =Q10+K5*R10 -> 22811.75658 | G25: =E25*F25 -> 326118012.6
G26: =SUM(G23:G25) -> 640414178.8 | H26: =G26/($G$26+$G$29) -> 0.3757747468
B27: Minor | C27: Timber | D27: 92430 | E27: ='Standard Estimates'!$C$2 -> 1299 | F27: =L6+L7 -> 104364 | G27: =E27*F27 -> 135568836
C28: Steel | D28: 92432 92433 | E28: ='Standard Estimates'!$C$4 -> 8308.5 | F28: =K6+K7 -> 111725 | G28: =E28*F28 -> 928267162.5
G29: =SUM(G27:G28) -> 1063835998 | H29: =G29/($G$26+$G$29) -> 0.6242252532
F30: =SUM(F23:F29) -> 302215
C32: Category | D32: ROA | E32: Depn | F32: O&M
B33: Major | C33: Rate 1 | D33: =H16 -> 0.4525785462 | E33: =H16 -> 0.4525785462 | F33: =H26*'Demand Forecast'!Y20 -> 0.1797949083
C34: Rate 2 | F34: =H26*'Demand Forecast'!Z20 -> 0.1959798384
B35: Minor | C35: Rate 1 | D35: =H19 -> 0.5474214538 | E35: =H19 -> 0.5474214538 | F35: =H29*'Demand Forecast'!AA20 -> 0.3183660481
C36: Rate 2 | F36: =H29*'Demand Forecast'!AB20 -> 0.3058592052

Sheet Standard Estimates
A2: Minor Wood M50 Street Lighting - AER 2015 | B2: 92430 | C2: =B22 -> 1299
A3: Major Wood S150 Street Lighting - AER 2015 | B3: 92431 | C3: =C22 -> 2197
A4: Steel Minor F32 Streetlighting AER 2015 | B4: 92432 | C4: =AVERAGE(D22,E22) -> 8308.5
A5: Steel Minor Decorative Streetlighting AER 2015 | B5: 92433
A6: Steel O/H Major Streetlighting - AER 2015 | B6: 92434 | C6: =F22 -> 8718
A7: Steel U/G Major Streetlighting - AER 2015 | B7: 92435 | C7: =G22 -> 14296.05
A9: Estimate No: | B9: 92430 | C9: 92431 | D9: 92432 | E9: 92433 | F9: 92434 | G9: 92435
A10: Version No: | B10: 6 | C10: 4 | D10: 5 | E10: 6 | F10: 4 | G10: 4
A11: Description: | B11: Minor Wood M50 Street Lighting - AER 2015 | C11: Major Wood S150 Street Lighting - AER 2015 | D11: Steel Minor F32 Streetlighting AER 2015 | E11: Steel Minor Decorative Streetlighting AER 2015 | F11: Steel O/H Major Streetlighting - AER 2015 | G11: Steel U/G Major Streetlighting - AER 2015
A12: Print Date: | B12: 2014-02-26 | C12: 2014-02-26 | D12: 2014-02-26 | E12: 2014-02-26 | F12: 2014-02-26 | G12: 2014-02-26
A13: Creation Date: | B13: 2014-01-30 | C13: 2014-01-30 | D13: 2014-01-30 | E13: 2014-01-30 | F13: 2014-01-30 | G13: 2014-01-30
A15: Project Estimated Cost Summary
A16: Materials (stock): | B16: 275 | C16: 667 | D16: 936 | E16: 1275 | F16: 1892 | G16: 2270.21
A17: Materials (purchases): | B17: 0 | C17: 0 | D17: 20 | E17: 20 | F17: 5 | G17: 150
A18: Materials (contract labour): | B18: 0 | C18: 107 | D18: 766 | E18: 766 | F18: 1736 | G18: 2176
A19: Labour: | B19: 560 | C19: 663 | D19: 3484 | E19: 3484 | F19: 2151 | G19: 4772.96
A20: Equipment: | B20: 0 | C20: 0 | D20: 0 | E20: 0 | F20: 0 | G20: 0
A21: Other: | B21: 464 | C21: 760 | D21: 2851 | E21: 3015 | F21: 2934 | G21: 4926.88
B22: =SUM(B16:B21) -> 1299 | C22: 2197 | D22: 8057 | E22: 8560 | F22: 8718 | G22: 14296.05
A23: Summary of Estimated Hours
A24: Labour Hours (ord): | B24: 9 | C24: 10 | D24: 59 | E24: 59 | F24: 34 | G24: 78.25
A25: Labour Hours (ot): | B25: 0 | C25: 0 | D25: 0 | E25: 0 | F25: 0 | G25: 0
B26: =SUM(B24:B25) -> 9 | C26: 10 | D26: 59 | E26: 59 | F26: 34 | G26: 78.25
A27: Adjustments SLPA/Escalation
A28: Materials: | B28: 0 | C28: 0 | D28: 0 | E28: 0 | F28: 0 | G28: 0
A29: Labour: | B29: 0 | C29: 0 | D29: 0 | E29: 0 | F29: 0 | G29: 0
B30: =SUM(B28:B29) -> 0 | C30: 0 | D30: 0 | E30: 0 | F30: 0 | G30: 0
A32: Previous Estimate for 2010/15 Determination | B32: 1068 | C32: 1749 | D32: 3579 | E32: 3579 | F32: 4644 | G32: 8043
B34: =(B22/B32)^(1/5)-1 -> 0.03993831556 | C34: 0.04666583794 | D34: 0.1762031362 | E34: 0.1905356735 | F34: 0.1342399261 | G34: 0.1219140787
B36: Full review of these standard estimates were done to reflect current practice and current materials
